[Event "*** Titled Tuesday Blitz"]
[Site "Chess.com"]
[Date "2021.02.16"]
[Round "3"]
[White "Gulkov_Igor"]
[Black "frederiksvane"]
[Result "1/2-1/2"]
[WhiteElo "2476"]
[BlackElo "2689"]
[TimeControl "180+1"]
[EndTime "10:31:09 PST"]
[Termination "Game drawn by agreement"]

1. Nf3 {[%clk 0:03:00.9]} 1... c5 {[%clk 0:03:00.3]} 2. c4 {[%clk 0:02:59.4]}
2... Nc6 {[%clk 0:03:00.5]} 3. d4 {[%clk 0:02:58.9]} 3... cxd4 {[%clk
0:03:01.4]} 4. Nxd4 {[%clk 0:02:58.9]} 4... g6 {[%clk 0:03:01.1]} 5. e4 {[%clk
0:02:58.3]} 5... Nf6 {[%clk 0:03:01.3]} 6. Nc3 {[%clk 0:02:57.4]} 6... Nxd4
{[%clk 0:03:01.7]} 7. Qxd4 {[%clk 0:02:56.7]} 7... d6 {[%clk 0:03:02.2]} 8. Be2
{[%clk 0:02:56.1]} 8... Bg7 {[%clk 0:03:02.1]} 9. Be3 {[%clk 0:02:55.8]} 9...
O-O {[%clk 0:03:01.3]} 10. Qd2 {[%clk 0:02:55.7]} 10... a5 {[%clk 0:03:01.3]}
11. f3 {[%clk 0:02:51.8]} 11... a4 {[%clk 0:03:01.4]} 12. O-O {[%clk 0:02:51.1]}
12... Qa5 {[%clk 0:02:58.4]} 13. Rac1 {[%clk 0:02:50.9]} 13... Be6 {[%clk
0:02:56.3]} 14. Rfd1 {[%clk 0:02:49.4]} 14... Rfc8 {[%clk 0:02:54.8]} 15. Nb5
{[%clk 0:02:48.8]} 15... Qxd2 {[%clk 0:02:45.3]} 16. Rxd2 {[%clk 0:02:48.4]}
16... Nd7 {[%clk 0:02:37.9]} 17. Nd4 {[%clk 0:02:39.1]} 17... Nc5 {[%clk
0:02:37.2]} 18. Nxe6 {[%clk 0:02:22.1]} 18... Nxe6 {[%clk 0:02:35.1]} 19. Kf2
{[%clk 0:02:16.2]} 19... Rc6 {[%clk 0:02:28.9]} 20. Rcd1 {[%clk 0:02:02.2]}
20... Rac8 {[%clk 0:02:24.7]} 21. f4 {[%clk 0:01:58.2]} 21... Nc5 {[%clk
0:02:20.8]} 22. Kf3 {[%clk 0:01:56.7]} 22... Rb6 {[%clk 0:02:20.1]} 23. e5
{[%clk 0:01:29]} 23... f5 {[%clk 0:02:14.2]} 24. exd6 {[%clk 0:01:25.2]} 24...
exd6 {[%clk 0:01:52.8]} 25. Rxd6 {[%clk 0:01:23.8]} 25... Rxd6 {[%clk
0:01:50.9]} 26. Rxd6 {[%clk 0:01:22.8]} 26... Bxb2 {[%clk 0:01:49.9]} 27. Rb6
{[%clk 0:01:15.3]} 27... a3 {[%clk 0:01:48.9]} 28. Bxc5 {[%clk 0:01:14.9]} 28...
Rxc5 {[%clk 0:01:49.8]} 29. Rxb7 {[%clk 0:01:14.9]} 29... Rc8 {[%clk 0:01:42.2]}
30. g4 {[%clk 0:01:07.2]} 30... fxg4+ {[%clk 0:01:38.6]} 31. Kxg4 {[%clk
0:01:07.2]} 31... Kh8 {[%clk 0:01:27.8]} 32. f5 {[%clk 0:00:53.6]} 32... gxf5+
{[%clk 0:01:27.9]} 33. Kxf5 {[%clk 0:00:53.7]} 33... Rf8+ {[%clk 0:01:27.7]} 34.
Ke4 {[%clk 0:00:52.7]} 34... Re8+ {[%clk 0:01:26.6]} 35. Kd3 {[%clk 0:00:50.8]}
35... Rd8+ {[%clk 0:01:22.2]} 36. Kc2 {[%clk 0:00:50.3]} 36... Rc8 {[%clk
0:01:21.7]} 37. Bd3 {[%clk 0:00:49.1]} 37... h6 {[%clk 0:01:13.6]} 38. Rh7+
{[%clk 0:00:48.3]} 38... Kg8 {[%clk 0:01:14.1]} 39. Rxh6 {[%clk 0:00:48.9]}
39... Kg7 {[%clk 0:01:14.2]} 40. Rg6+ {[%clk 0:00:47.9]} 40... Kf7 {[%clk
0:01:14.5]} 41. Rg4 {[%clk 0:00:46.7]} 41... Kf6 {[%clk 0:01:11.6]} 42. h4
{[%clk 0:00:46.4]} 42... Rh8 {[%clk 0:01:10.3]} 43. Bg6 {[%clk 0:00:44.4]} 43...
Ke5 {[%clk 0:01:02.2]} 44. h5 {[%clk 0:00:44.3]} 44... Kd6 {[%clk 0:00:55.1]}
45. Bf7 {[%clk 0:00:37.5]} 45... Rf8 {[%clk 0:00:51.1]} 46. Bd5 {[%clk
0:00:32.5]} 46... Rf2+ {[%clk 0:00:49.3]} 47. Kb3 {[%clk 0:00:32.3]} 47... Rh2
{[%clk 0:00:40.4]} 48. Rg6+ {[%clk 0:00:31.9]} 48... Kc5 {[%clk 0:00:39.5]} 49.
Rc6+ {[%clk 0:00:32]} 49... Kd4 {[%clk 0:00:38.4]} 50. h6 {[%clk 0:00:32.3]}
50... Rh3+ {[%clk 0:00:29.9]} 51. Ka4 {[%clk 0:00:31.7]} 51... Bc1 {[%clk
0:00:30.4]} 52. Bg8 {[%clk 0:00:30.7]} 52... Rxh6 {[%clk 0:00:29.1]} 53. Rxh6
{[%clk 0:00:29.5]} 53... Bxh6 {[%clk 0:00:30]} 54. Kb5 {[%clk 0:00:28.5]} 54...
Bf8 {[%clk 0:00:29.5]} 1/2-1/2

[Event "*** Titled Tuesday Blitz"]
[Site "Chess.com"]
[Date "2021.02.16"]
[Round "3"]
[White "DamianoLew95"]
[Black "TokChess"]
[Result "1-0"]
[WhiteElo "2593"]
[BlackElo "2384"]
[TimeControl "180+1"]
[EndTime "10:31:09 PST"]
[Termination "DamianoLew95 won on time"]

1. b3 {[%clk 0:03:00.9]} 1... c5 {[%clk 0:02:59.9]} 2. Bb2 {[%clk 0:03:00.8]}
2... Nc6 {[%clk 0:03:00.7]} 3. f4 {[%clk 0:03:00.8]} 3... Nf6 {[%clk 0:03:00.9]}
4. Nf3 {[%clk 0:03:01]} 4... b6 {[%clk 0:03:01.2]} 5. e3 {[%clk 0:03:01.4]} 5...
Bb7 {[%clk 0:03:01.6]} 6. Bb5 {[%clk 0:02:53.8]} 6... a6 {[%clk 0:03:00.2]} 7.
Bxc6 {[%clk 0:02:51.6]} 7... Bxc6 {[%clk 0:03:01.1]} 8. O-O {[%clk 0:02:51.5]}
8... e6 {[%clk 0:03:00.8]} 9. Qe2 {[%clk 0:02:51.1]} 9... Be7 {[%clk 0:03:00.6]}
10. d3 {[%clk 0:02:51.5]} 10... O-O {[%clk 0:02:46.9]} 11. Nbd2 {[%clk
0:02:49.8]} 11... Nd5 {[%clk 0:02:41.2]} 12. c4 {[%clk 0:02:37]} 12... Nc7
{[%clk 0:02:41.3]} 13. Ne5 {[%clk 0:02:29.8]} 13... Bb7 {[%clk 0:02:31.1]} 14.
Ndf3 {[%clk 0:02:20.5]} 14... f6 {[%clk 0:02:29.3]} 15. Ng4 {[%clk 0:02:18.2]}
15... d5 {[%clk 0:02:16]} 16. e4 {[%clk 0:02:06.3]} 16... dxe4 {[%clk
0:02:11.8]} 17. dxe4 {[%clk 0:02:03.3]} 17... Qe8 {[%clk 0:02:11.9]} 18. Rad1
{[%clk 0:01:55.7]} 18... Qg6 {[%clk 0:02:08.5]} 19. Rd7 {[%clk 0:01:33.3]} 19...
Bd8 {[%clk 0:02:02.8]} 20. Nf2 {[%clk 0:01:24.8]} 20... Rc8 {[%clk 0:01:45.7]}
21. Rfd1 {[%clk 0:01:18.3]} 21... Bc6 {[%clk 0:01:45.2]} 22. R7d6 {[%clk
0:01:06.2]} 22... Qe8 {[%clk 0:01:41.7]} 23. R6d2 {[%clk 0:00:51.2]} 23... Be7
{[%clk 0:01:38.2]} 24. h4 {[%clk 0:00:50.8]} 24... Qg6 {[%clk 0:01:32.2]} 25.
Nh2 {[%clk 0:00:41.5]} 25... Rfd8 {[%clk 0:01:30.8]} 26. h5 {[%clk 0:00:41.1]}
26... Qe8 {[%clk 0:01:17]} 27. Nhg4 {[%clk 0:00:39.1]} 27... h6 {[%clk
0:01:10.1]} 28. e5 {[%clk 0:00:35.8]} 28... Rxd2 {[%clk 0:01:05.4]} 29. Rxd2
{[%clk 0:00:34.7]} 29... f5 {[%clk 0:01:05.1]} 30. Ne3 {[%clk 0:00:34.4]} 30...
Rd8 {[%clk 0:01:03.6]} 31. Rxd8 {[%clk 0:00:33.5]} 31... Qxd8 {[%clk 0:01:03.8]}
32. g4 {[%clk 0:00:33.1]} 32... fxg4 {[%clk 0:01:00.1]} 33. Nfxg4 {[%clk
0:00:33.6]} 33... Qe8 {[%clk 0:00:48.9]} 34. f5 {[%clk 0:00:33.1]} 34... exf5
{[%clk 0:00:36.1]} 35. Nxf5 {[%clk 0:00:34]} 35... Bg5 {[%clk 0:00:32.8]} 36.
Qd3 {[%clk 0:00:27.6]} 36... Qxh5 {[%clk 0:00:15.2]} 37. Nf2 {[%clk 0:00:27.6]}
37... Ne6 {[%clk 0:00:07.2]} 38. Qd6 {[%clk 0:00:27.2]} 38... Qe8 {[%clk
0:00:02.7]} 39. Ng4 {[%clk 0:00:26.9]} 39... Bf3 {[%clk 0:00:01.9]} 40. Nge3
{[%clk 0:00:24.9]} 40... Bh5 {[%clk 0:00:01.5]} 41. Nd5 {[%clk 0:00:23.6]} 41...
Bf7 {[%clk 0:00:01.5]} 42. Qxb6 {[%clk 0:00:22.3]} 42... Nf4 {[%clk 0:00:01.4]}
43. Nd6 {[%clk 0:00:18.6]} 1-0

[Event "*** Titled Tuesday Blitz"]
[Site "Chess.com"]
[Date "2021.02.16"]
[Round "3"]
[White "MatyChess1"]
[Black "Bulldog167"]
[Result "0-1"]
[WhiteElo "2623"]
[BlackElo "2876"]
[TimeControl "180+1"]
[EndTime "10:31:11 PST"]
[Termination "Bulldog167 won by resignation"]

1. e4 {[%clk 0:03:00.9]} 1... e6 {[%clk 0:02:59.5]} 2. d4 {[%clk 0:03:00.5]}
2... d5 {[%clk 0:03:00.2]} 3. Nc3 {[%clk 0:03:01.4]} 3... Bb4 {[%clk 0:02:59.9]}
4. Ne2 {[%clk 0:03:01.9]} 4... dxe4 {[%clk 0:03:00.1]} 5. a3 {[%clk 0:03:02]}
5... Bxc3+ {[%clk 0:03:00.4]} 6. Nxc3 {[%clk 0:03:02.9]} 6... Nc6 {[%clk
0:03:01.2]} 7. Bb5 {[%clk 0:03:01.5]} 7... Ne7 {[%clk 0:03:01.8]} 8. Bg5 {[%clk
0:03:01.7]} 8... f6 {[%clk 0:03:01]} 9. Be3 {[%clk 0:03:02.2]} 9... O-O {[%clk
0:03:01.4]} 10. Qd2 {[%clk 0:02:47.8]} 10... f5 {[%clk 0:03:01.3]} 11. O-O-O
{[%clk 0:02:44.8]} 11... a6 {[%clk 0:03:01.6]} 12. Bc4 {[%clk 0:02:45]} 12...
Nd5 {[%clk 0:02:47.1]} 13. Bg5 {[%clk 0:02:29.4]} 13... Qd6 {[%clk 0:02:36.9]}
14. Bxd5 {[%clk 0:02:21]} 14... exd5 {[%clk 0:02:36.6]} 15. Bf4 {[%clk
0:02:21.3]} 15... Qd8 {[%clk 0:02:35.5]} 16. h4 {[%clk 0:02:21.1]} 16... Be6
{[%clk 0:02:27.9]} 17. h5 {[%clk 0:02:16.4]} 17... Na5 {[%clk 0:02:27.2]} 18.
Ne2 {[%clk 0:02:12]} 18... Nc4 {[%clk 0:02:27.1]} 19. Qe1 {[%clk 0:01:52.6]}
19... a5 {[%clk 0:02:24.7]} 20. f3 {[%clk 0:01:39.4]} 20... b5 {[%clk 0:02:24]}
21. Qg3 {[%clk 0:01:39.5]} 21... Rf7 {[%clk 0:02:17.3]} 22. Be5 {[%clk
0:01:34.1]} 22... Qd7 {[%clk 0:02:02.7]} 23. Nf4 {[%clk 0:01:30.3]} 23... c5
{[%clk 0:01:33.9]} 24. h6 {[%clk 0:01:22.4]} 24... Nxe5 {[%clk 0:01:33.5]} 25.
dxe5 {[%clk 0:01:20.4]} 25... g6 {[%clk 0:01:33]} 26. Rh5 {[%clk 0:00:50.1]}
26... Kh8 {[%clk 0:01:27.4]} 27. Rg5 {[%clk 0:00:47.4]} 27... Rg8 {[%clk
0:01:27]} 28. Nh5 {[%clk 0:00:43.9]} 28... Qc7 {[%clk 0:01:18.5]} 29. f4 {[%clk
0:00:34.1]} 29... d4 {[%clk 0:01:12.5]} 30. Nf6 {[%clk 0:00:28.2]} 30... Rxf6
{[%clk 0:01:09.3]} 31. exf6 {[%clk 0:00:29.1]} 31... Qf7 {[%clk 0:01:08.2]} 32.
Qe1 {[%clk 0:00:26.9]} 32... b4 {[%clk 0:01:07.5]} 33. g4 {[%clk 0:00:25.1]}
33... Qxf6 {[%clk 0:01:06.5]} 34. gxf5 {[%clk 0:00:25.4]} 34... Bxf5 {[%clk
0:01:07.1]} 35. a4 {[%clk 0:00:23.4]} 35... e3 {[%clk 0:01:06.2]} 36. Qe2 {[%clk
0:00:22.5]} 36... Qe6 {[%clk 0:01:01.5]} 37. b3 {[%clk 0:00:21.4]} 37... Qe4
{[%clk 0:00:58.7]} 38. Rf1 {[%clk 0:00:17.9]} 38... Re8 {[%clk 0:00:56.6]} 39.
Rg2 {[%clk 0:00:07.1]} 39... c4 {[%clk 0:00:52.9]} 40. bxc4 {[%clk 0:00:02.9]}
40... b3 {[%clk 0:00:52.9]} 41. Kb2 {[%clk 0:00:03.4]} 41... bxc2 {[%clk
0:00:52.8]} 42. Qxc2 {[%clk 0:00:04]} 42... Rb8+ {[%clk 0:00:51.7]} 43. Kc1
{[%clk 0:00:03.6]} 43... Qc6 {[%clk 0:00:36.8]} 44. Qa2 {[%clk 0:00:01.2]} 44...
Rb4 {[%clk 0:00:33.8]} 45. Rb2 {[%clk 0:00:02.1]} 45... Rxc4+ {[%clk 0:00:33.1]}
46. Kd1 {[%clk 0:00:02.7]} 46... Rc1+ {[%clk 0:00:32.1]} 47. Ke2 {[%clk
0:00:03.4]} 47... Qg2+ {[%clk 0:00:32.6]} 0-1

[Event "*** Titled Tuesday Blitz"]
[Site "Chess.com"]
[Date "2021.02.16"]
[Round "3"]
[White "SirStrateg"]
[Black "Nils_03"]
[Result "1-0"]
[WhiteElo "2540"]
[BlackElo "2339"]
[TimeControl "180+1"]
[EndTime "10:31:12 PST"]
[Termination "SirStrateg won on time"]

1. d4 {[%clk 0:02:56.9]} 1... d5 {[%clk 0:02:59.5]} 2. Bf4 {[%clk 0:02:56.2]}
2... e6 {[%clk 0:02:54.6]} 3. e3 {[%clk 0:02:55.8]} 3... b6 {[%clk 0:02:53.8]}
4. Nf3 {[%clk 0:02:53.3]} 4... Nf6 {[%clk 0:02:53]} 5. Nbd2 {[%clk 0:02:53]}
5... Bd6 {[%clk 0:02:48]} 6. Bg3 {[%clk 0:02:53.1]} 6... O-O {[%clk 0:02:44.9]}
7. Bd3 {[%clk 0:02:51.9]} 7... Ba6 {[%clk 0:02:44.7]} 8. c4 {[%clk 0:02:51.3]}
8... dxc4 {[%clk 0:02:41.9]} 9. Nxc4 {[%clk 0:02:50.8]} 9... Nc6 {[%clk
0:02:37.2]} 10. Nxd6 {[%clk 0:02:45.5]} 10... Bxd3 {[%clk 0:02:37.1]} 11. Nxf7
{[%clk 0:02:44]} 11... Rxf7 {[%clk 0:02:32.3]} 12. Qxd3 {[%clk 0:02:44.1]} 12...
Qd5 {[%clk 0:02:25.1]} 13. O-O {[%clk 0:02:38.3]} 13... Nb4 {[%clk 0:02:15.8]}
14. Qe2 {[%clk 0:02:29]} 14... Nxa2 {[%clk 0:02:09.2]} 15. Ne5 {[%clk
0:02:28.7]} 15... Re7 {[%clk 0:02:01]} 16. b3 {[%clk 0:02:24]} 16... Nb4 {[%clk
0:02:00]} 17. Qc4 {[%clk 0:02:24.1]} 17... a5 {[%clk 0:01:52]} 18. f3 {[%clk
0:02:20]} 18... Rd8 {[%clk 0:01:43.2]} 19. Rfc1 {[%clk 0:02:16.8]} 19... Qxc4
{[%clk 0:01:40.1]} 20. Rxc4 {[%clk 0:02:14.6]} 20... Nfd5 {[%clk 0:01:39.4]} 21.
Bf2 {[%clk 0:02:10.2]} 21... g6 {[%clk 0:01:27.2]} 22. Bh4 {[%clk 0:01:54.8]}
22... Rde8 {[%clk 0:01:08.8]} 23. Bxe7 {[%clk 0:01:54.7]} 23... Rxe7 {[%clk
0:01:09.7]} 24. Kf2 {[%clk 0:01:53.7]} 24... Kg7 {[%clk 0:01:04.8]} 25. e4
{[%clk 0:01:47.8]} 25... Nf6 {[%clk 0:01:02.8]} 26. Nc6 {[%clk 0:01:45.6]} 26...
Nxc6 {[%clk 0:01:01.2]} 27. Rxc6 {[%clk 0:01:45.7]} 27... Ne8 {[%clk 0:00:54.1]}
28. Ke3 {[%clk 0:01:43.3]} 28... Kf7 {[%clk 0:00:54]} 29. h4 {[%clk 0:01:40.3]}
29... Rd7 {[%clk 0:00:53.9]} 30. g4 {[%clk 0:01:39.6]} 30... Ke7 {[%clk
0:00:51.3]} 31. Rh1 {[%clk 0:01:35.3]} 31... Ng7 {[%clk 0:00:47.3]} 32. h5
{[%clk 0:01:31.4]} 32... g5 {[%clk 0:00:44.1]} 33. h6 {[%clk 0:01:30.4]} 33...
Ne8 {[%clk 0:00:43.9]} 34. Rc2 {[%clk 0:01:23.8]} 34... Kf6 {[%clk 0:00:39.4]}
35. Rb2 {[%clk 0:01:14]} 35... Kg6 {[%clk 0:00:35.7]} 36. e5 {[%clk 0:01:12.3]}
36... Rd5 {[%clk 0:00:28.5]} 37. b4 {[%clk 0:01:11.9]} 37... axb4 {[%clk
0:00:23]} 38. Rxb4 {[%clk 0:01:11.8]} 38... c5 {[%clk 0:00:23.3]} 39. Rxb6
{[%clk 0:01:12]} 39... cxd4+ {[%clk 0:00:23.3]} 40. Ke4 {[%clk 0:01:11.6]} 40...
Nc7 {[%clk 0:00:20.5]} 41. Rd6 {[%clk 0:01:09.9]} 41... d3 {[%clk 0:00:13.3]}
42. Rxd5 {[%clk 0:00:58.4]} 42... Nxd5 {[%clk 0:00:14.2]} 43. Kxd3 {[%clk
0:00:58.1]} 43... Ne7 {[%clk 0:00:13.9]} 44. Rb1 {[%clk 0:00:51.4]} 44... Nd5
{[%clk 0:00:10.1]} 45. Rh1 {[%clk 0:00:51.4]} 45... Ne7 {[%clk 0:00:10.1]} 46.
Ke4 {[%clk 0:00:50.9]} 46... Ng8 {[%clk 0:00:09.7]} 47. Kd4 {[%clk 0:00:42.7]}
47... Nxh6 {[%clk 0:00:09.3]} 48. Kc5 {[%clk 0:00:42.9]} 48... Nf7 {[%clk
0:00:09.6]} 49. Re1 {[%clk 0:00:41.8]} 49... h5 {[%clk 0:00:07.3]} 50. Kc6
{[%clk 0:00:42.3]} 50... hxg4 {[%clk 0:00:05.7]} 51. fxg4 {[%clk 0:00:42.5]}
51... Nh6 {[%clk 0:00:06.6]} 52. Re4 {[%clk 0:00:42.7]} 52... Kf7 {[%clk
0:00:05.5]} 53. Kd6 {[%clk 0:00:42.7]} 53... Ng8 {[%clk 0:00:02.1]} 54. Ra4
{[%clk 0:00:42.9]} 1-0

[Event "*** Titled Tuesday Blitz"]
[Site "Chess.com"]
[Date "2021.02.16"]
[Round "3"]
[White "bylavochka"]
[Black "BabyBoss31"]
[Result "0-1"]
[WhiteElo "2073"]
[BlackElo "2329"]
[TimeControl "180+1"]
[EndTime "10:31:12 PST"]
[Termination "BabyBoss31 won by resignation"]

1. e4 {[%clk 0:03:00.9]} 1... c6 {[%clk 0:02:59.5]} 2. d4 {[%clk 0:03:01]} 2...
d5 {[%clk 0:02:59.8]} 3. exd5 {[%clk 0:03:00]} 3... cxd5 {[%clk 0:02:59.7]} 4.
c4 {[%clk 0:03:00.9]} 4... Nf6 {[%clk 0:02:59.2]} 5. Nc3 {[%clk 0:03:01.1]} 5...
g6 {[%clk 0:02:56.8]} 6. cxd5 {[%clk 0:03:00.8]} 6... Nxd5 {[%clk 0:02:54.6]} 7.
Bc4 {[%clk 0:02:54.5]} 7... Nb6 {[%clk 0:02:54.8]} 8. Bb3 {[%clk 0:02:49.1]}
8... Bg7 {[%clk 0:02:51]} 9. Nge2 {[%clk 0:02:48.4]} 9... O-O {[%clk 0:02:34.5]}
10. O-O {[%clk 0:02:48]} 10... Nc6 {[%clk 0:02:33.5]} 11. Be3 {[%clk 0:02:47.6]}
11... Bg4 {[%clk 0:02:26.4]} 12. h3 {[%clk 0:02:40.2]} 12... Bxe2 {[%clk
0:02:20.1]} 13. Nxe2 {[%clk 0:02:41.1]} 13... e6 {[%clk 0:01:46.3]} 14. a3
{[%clk 0:02:40.5]} 14... Nd5 {[%clk 0:01:36.8]} 15. Qd3 {[%clk 0:02:35.1]} 15...
Nxe3 {[%clk 0:01:25.3]} 16. fxe3 {[%clk 0:02:36]} 16... Qb6 {[%clk 0:01:24.5]}
17. Rac1 {[%clk 0:02:07.3]} 17... Rac8 {[%clk 0:01:10.6]} 18. Bc4 {[%clk
0:01:36.5]} 18... Rfd8 {[%clk 0:01:03.5]} 19. b4 {[%clk 0:01:29.1]} 19... Ne5
{[%clk 0:01:00]} 20. Qb3 {[%clk 0:01:23.1]} 20... Nxc4 {[%clk 0:00:27.2]} 21.
Rxc4 {[%clk 0:01:24]} 21... Qb5 {[%clk 0:00:22.9]} 22. Rfc1 {[%clk 0:01:02.6]}
22... Rxc4 {[%clk 0:00:17.9]} 23. Qxc4 {[%clk 0:01:03.5]} 23... Qg5 {[%clk
0:00:14.5]} 24. Qb3 {[%clk 0:00:32.8]} 24... Bh6 {[%clk 0:00:08]} 25. Nf4 {[%clk
0:00:32.7]} 25... Qe7 {[%clk 0:00:06.2]} 26. Ne2 {[%clk 0:00:18.3]} 26... Kg7
{[%clk 0:00:05]} 27. Ng3 {[%clk 0:00:12.6]} 27... Rd7 {[%clk 0:00:05.2]} 28. Ne4
{[%clk 0:00:11.8]} 28... Qh4 {[%clk 0:00:05.2]} 29. Qd3 {[%clk 0:00:05.3]} 29...
b6 {[%clk 0:00:05.7]} 30. Rf1 {[%clk 0:00:03.2]} 30... f5 {[%clk 0:00:05.9]} 31.
Nd2 {[%clk 0:00:02.6]} 31... e5 {[%clk 0:00:06.1]} 32. Nf3 {[%clk 0:00:02.7]}
32... e4 {[%clk 0:00:06.2]} 33. Nxh4 {[%clk 0:00:02.4]} 33... exd3 {[%clk
0:00:05.6]} 34. Kf2 {[%clk 0:00:03.3]} 34... Re7 {[%clk 0:00:05.5]} 35. Nf3
{[%clk 0:00:02.5]} 35... Bxe3+ {[%clk 0:00:05.2]} 36. Kg3 {[%clk 0:00:02.8]}
36... f4+ {[%clk 0:00:05.3]} 37. Kg4 {[%clk 0:00:02.6]} 37... h5+ {[%clk
0:00:05.8]} 38. Kh4 {[%clk 0:00:02.4]} 38... Rd7 {[%clk 0:00:06.2]} 39. Rd1
{[%clk 0:00:02.3]} 39... Bxd4 {[%clk 0:00:06.6]} 40. Rxd3 {[%clk 0:00:02.4]}
40... Bf6+ {[%clk 0:00:06.8]} 41. Ng5 {[%clk 0:00:01.8]} 41... Rxd3 {[%clk
0:00:07.3]} 42. g4 {[%clk 0:00:01.7]} 0-1

[Event "*** Titled Tuesday Blitz"]
[Site "Chess.com"]
[Date "2021.02.16"]
[Round "3"]
[White "lolo9292"]
[Black "ChessQueen"]
[Result "1/2-1/2"]
[WhiteElo "2446"]
[BlackElo "2727"]
[TimeControl "180+1"]
[EndTime "10:31:16 PST"]
[Termination "Game drawn - insufficient material"]

1. e4 {[%clk 0:03:00.9]} 1... c6 {[%clk 0:02:59.9]} 2. Nf3 {[%clk 0:03:01.8]}
2... d5 {[%clk 0:02:59.8]} 3. d3 {[%clk 0:03:01.8]} 3... dxe4 {[%clk 0:02:59]}
4. dxe4 {[%clk 0:03:02.7]} 4... Qxd1+ {[%clk 0:02:58.8]} 5. Kxd1 {[%clk
0:03:03.6]} 5... Nf6 {[%clk 0:02:58.4]} 6. Bd3 {[%clk 0:03:03.9]} 6... h6 {[%clk
0:02:55.8]} 7. Ke2 {[%clk 0:03:03.7]} 7... g5 {[%clk 0:02:55.6]} 8. h3 {[%clk
0:03:02.5]} 8... Rg8 {[%clk 0:02:53.4]} 9. Nc3 {[%clk 0:03:02.2]} 9... Be6
{[%clk 0:02:42.9]} 10. Nd4 {[%clk 0:03:01.4]} 10... Bc8 {[%clk 0:02:33.6]} 11.
Be3 {[%clk 0:02:59.2]} 11... Nbd7 {[%clk 0:02:32.9]} 12. Rad1 {[%clk 0:02:55.3]}
12... Ne5 {[%clk 0:02:30.1]} 13. h4 {[%clk 0:02:41.2]} 13... Bg4+ {[%clk
0:02:19.3]} 14. f3 {[%clk 0:02:40.9]} 14... Bd7 {[%clk 0:02:19.1]} 15. hxg5
{[%clk 0:02:41.1]} 15... hxg5 {[%clk 0:02:19.1]} 16. g4 {[%clk 0:02:42]} 16...
e6 {[%clk 0:02:12.7]} 17. Nb3 {[%clk 0:02:40.4]} 17... Bb4 {[%clk 0:02:01.3]}
18. Na4 {[%clk 0:02:38.5]} 18... Nxd3 {[%clk 0:01:47.1]} 19. cxd3 {[%clk
0:02:37]} 19... b6 {[%clk 0:01:46]} 20. Bd4 {[%clk 0:02:35.6]} 20... Rg6 {[%clk
0:01:26.6]} 21. Rh8+ {[%clk 0:02:32.5]} 21... Bf8 {[%clk 0:01:24.6]} 22. Rdh1
{[%clk 0:02:25.5]} 22... Ng8 {[%clk 0:01:18.5]} 23. Nc3 {[%clk 0:02:21.9]} 23...
c5 {[%clk 0:01:17]} 24. Be5 {[%clk 0:02:20.7]} 24... O-O-O {[%clk 0:01:15]} 25.
d4 {[%clk 0:02:19.3]} 25... f6 {[%clk 0:01:13.8]} 26. Bg3 {[%clk 0:02:18.7]}
26... f5 {[%clk 0:00:50.7]} 27. gxf5 {[%clk 0:02:10.6]} 27... exf5 {[%clk
0:00:51.1]} 28. Be5 {[%clk 0:01:47.4]} 28... g4 {[%clk 0:00:47.4]} 29. fxg4
{[%clk 0:01:43.8]} 29... fxg4 {[%clk 0:00:47.4]} 30. dxc5 {[%clk 0:01:42]} 30...
bxc5 {[%clk 0:00:46.9]} 31. Nd5 {[%clk 0:01:39.8]} 31... g3 {[%clk 0:00:45.7]}
32. Rg1 {[%clk 0:01:37.6]} 32... g2 {[%clk 0:00:41.9]} 33. Nd2 {[%clk
0:01:33.6]} 33... Ne7 {[%clk 0:00:34.2]} 34. Nf4 {[%clk 0:01:20.2]} 34... Ra6
{[%clk 0:00:34.2]} 35. Rxg2 {[%clk 0:01:17.7]} 35... Nc6 {[%clk 0:00:34.4]} 36.
Bf6 {[%clk 0:01:16.8]} 36... Nd4+ {[%clk 0:00:34.2]} 37. Bxd4 {[%clk 0:01:12.1]}
37... cxd4 {[%clk 0:00:35.1]} 38. Rgg8 {[%clk 0:01:11]} 38... Be7 {[%clk
0:00:35.5]} 39. Rxd8+ {[%clk 0:01:10.5]} 39... Bxd8 {[%clk 0:00:36.4]} 40. e5
{[%clk 0:01:10.2]} 40... Bf5 {[%clk 0:00:22.4]} 41. Nb3 {[%clk 0:01:02.1]} 41...
Rxa2 {[%clk 0:00:18.5]} 42. Nxd4 {[%clk 0:01:02.1]} 42... Rxb2+ {[%clk
0:00:18.6]} 43. Ke3 {[%clk 0:00:59.5]} 43... Bg4 {[%clk 0:00:17.8]} 44. Nfe6
{[%clk 0:00:56.1]} 44... Bxe6 {[%clk 0:00:17.4]} 45. Nxe6 {[%clk 0:00:57]} 45...
Kd7 {[%clk 0:00:18]} 46. Nc5+ {[%clk 0:00:42.3]} 46... Kc6 {[%clk 0:00:17.4]}
47. Rxd8 {[%clk 0:00:42.3]} 47... Kxc5 {[%clk 0:00:17.6]} 48. Ke4 {[%clk
0:00:43.2]} 48... Re2+ {[%clk 0:00:17.3]} 49. Kf5 {[%clk 0:00:43.7]} 49... a5
{[%clk 0:00:17.6]} 50. Ke6 {[%clk 0:00:42.4]} 50... a4 {[%clk 0:00:18]} 51. Ra8
{[%clk 0:00:42.6]} 51... Kb4 {[%clk 0:00:18.3]} 52. Rb8+ {[%clk 0:00:42.3]}
52... Kc3 {[%clk 0:00:18.4]} 53. Rc8+ {[%clk 0:00:41.5]} 53... Kb3 {[%clk
0:00:18.8]} 54. Kd6 {[%clk 0:00:40.4]} 54... a3 {[%clk 0:00:19]} 55. Rb8+ {[%clk
0:00:40.5]} 55... Kc3 {[%clk 0:00:19.1]} 56. Ra8 {[%clk 0:00:39.7]} 56... Kb2
{[%clk 0:00:19.4]} 57. e6 {[%clk 0:00:40.1]} 57... a2 {[%clk 0:00:19.6]} 58.
Rxa2+ {[%clk 0:00:39.9]} 58... Kxa2 {[%clk 0:00:19.9]} 59. Ke7 {[%clk
0:00:40.2]} 59... Kb3 {[%clk 0:00:20.1]} 60. Kf7 {[%clk 0:00:40.6]} 60... Kc4
{[%clk 0:00:20.6]} 61. e7 {[%clk 0:00:41.2]} 61... Kd5 {[%clk 0:00:21.1]} 62.
e8=Q {[%clk 0:00:41.4]} 62... Rxe8 {[%clk 0:00:21.1]} 63. Kxe8 {[%clk
0:00:42.3]} 1/2-1/2